Cogmind - Beta 16 --- EXPLORER MODE // 2026.01.25 @ 17:12:33 Player: MKultra Result: Self-destructed Performance ------------- Evolutions (2) 1000 Regions Visited (3) 600 Robots Destroyed (23) 115 Value Destroyed (790) 790 Prototype IDs (17) 340 Alien Tech Used (0) 0 Bonus (-56) -56 TOTAL SCORE: 2789 Bonus ------- Friendly Fire -56 Cogmind --------- Core Integrity 550/550 Matter 237/300 Energy 200/270 System Corruption 0% Temperature Cool (0) Movement Walking (200) Ox1 Location -8/Materials Parts ------- > --- POWER (2) -------- Subdweller Power Source Makeshift Power Source > --- PROPULSION (3) --- Cargo Legs > --- UTILITY (4+2) ---- Cooling System Huge Storage Unit Structural Scanner Gun Armor (+) > --- WEAPON (3+1) ----- EM Shotgun (+) Subdweller Machine Gun Barrage Gun Makeshift Shrapnel Gun > --- INVENTORY (25) --- Subdweller Monowheel Medium Storage Unit Barrage Gun Rocket Launcher SUBCON Basin (Full) Peak State ------------ > --- POWER ------------ Subdweller Power Source Makeshift Power Source > --- PROPULSION ------- Cargo Legs > --- UTILITY ---------- Cooling System Huge Storage Unit Structural Scanner Gun Armor > --- WEAPON ----------- EM Shotgun Subdweller Machine Gun Barrage Gun Makeshift Shrapnel Gun > --- INVENTORY -------- Subdweller Monowheel Medium Storage Unit Barrage Gun Rocket Launcher SUBCON Basin [Rating: 64] Favorites ----------- Power Ion Engine Engine Ion Engine Propulsion Subdweller Monowheel Treads Light Treads Leg Cargo Legs Wheel Subdweller Monowheel Utility Structural Scanner Device Structural Scanner Storage Medium Storage Unit Processor Targeting Computer Protection Gun Armor Weapon Riot Gun Energy Gun Riot Gun Ballistic Gun Subdweller Machine Gun Launcher Rocket Launcher Build | -11 -10 -10 -8 ------- Run | Yrd Mat Sub Mat Slots Evolved 5 | . 1 . 4 Power 1 | . . . 1 Propulsion 1 | . . . 1 Utility 2 | . 1 . 1 Weapon 1 | . . . 1 Parts Attached 32 | 1 8 23 . Power 4 | . . 4 . Engine 4 | . . 4 . Core . | . . . . Reactor . | . . . . Propulsion 9 | . 2 7 . Treads 3 | . 2 1 . Leg 1 | . . 1 . Wheel 5 | . . 5 . Hover . | . . . . Flight . | . . . . Utility 7 | . 4 3 . Device 4 | . 3 1 . Storage 1 | . . 1 . Processor 1 | . 1 . . Hackware . | . . . . Protection 1 | . . 1 . Artifact . | . . . . Weapon 12 | 1 2 9 . Energy Gun 4 | . 2 2 . Energy Cannon . | . . . . Ballistic Gun 7 | 1 . 6 . Ballistic Cannon . | . . . . Launcher 1 | . . 1 . Special Weapon . | . . . . Impact Weapon . | . . . . Slashing Weapon . | . . . . Piercing Weapon . | . . . . Special Melee Weapon . | . . . . Unidentified Prototypes 1 | . . 1 . Parts Lost 1 | . . 1 . Power . | . . . . Propulsion . | . . . . Utility . | . . . . Weapon 1 | . . 1 . Highest Loss Streak 1 | . . 1 . To Critical Strikes . | . . . . Average Backups 6 | 7 5 7 5 Power . | 1 1 . 1 Propulsion . | 2 1 . 1 Utility 2 | 3 1 2 1 Weapon 3 | 1 1 3 2 Tool/Special . | . . . . Unused Backups 13 | . 7 5 1 Power 3 | . 1 2 . Propulsion 4 | . 3 . 1 Utility 3 | . 2 1 . Weapon 3 | . 1 2 . Tool/Special . | . . . . Average Slot Usage (%) 87 | . 93 87 66 Engine 10 | . 12 10 6 Treads 4 | . 13 2 . Leg 4 | . 11 2 6 Wheel 5 | . . 6 . Device 19 | . 14 19 13 Storage 10 | . 12 10 6 Protection 3 | . . 4 6 Energy Gun 14 | . 15 14 6 Ballistic Gun 13 | . 8 13 20 Peak Build Rating 64 | 7 12 59 64 Average Rating 24 | 6 8 27 63 On Entrance 21 | 7 6 12 59 Avg Prop Armor Cover (%) . | . . . . Naked Turns . | . . . . Heaviest Build 108 | 19 24 101 108 Greatest Support 55 | 20 40 55 55 Greatest Overweight (x) 7 | . 1 7 1 Average Overweight (x) . | . . . 1 Largest Inventory Capacity 25 | 10 10 25 25 Average Capacity 11 | 10 10 12 25 Most Carried 21 | 7 8 21 20 Average Carried 9 | 6 5 9 19 Final Capacity 25 | 10 10 25 25 Final Carried 21 | 4 8 21 19 Class Distribution -------------------- 57% | Hacker-Mutant 42% | Hacker-Skirmisher Dominant Class ---------------- Hacker-Mutant | -10/Materials Hacker-Mutant | -10/Subcaves Hacker-Mutant | -8/Materials Resources | -11 -10 -10 -8 ----------- Run | Yrd Mat Sub Mat Matter Collected 889 | 200 105 584 . Remotely . | . . . . Salvage Created 953 | . 198 755 . Parts 39 | . 8 31 . Haulers Intercepted 2 | . 2 . . Recyclers Shooed . | . . . . Parts Field Recycled . | . . . . Retrieved Matter . | . . . . Parts Self-Destructed . | . . . . Prevented . | . . . . Parts Restored . | . . . . Kills | -11 -10 -10 -8 ------- Run | Yrd Mat Sub Mat Combat Hostiles Destroyed 18 | . 2 16 . Guns 13 | . 2 11 . AOE 4 | . . 4 . Classes Destroyed 6 | . 3 3 . Builder 1 | . 1 . . Hauler 2 | . 2 . . Turret 2 | . . 2 . Grunt 2 | . 2 . . Cobbler 1 | . . 1 . Subdweller 16 | . . 16 . Best Kill Streak 5 | . 3 5 . Combat Bots Only 5 | . 2 5 . Max Kills in Single Turn 2 | . 1 2 . Gunslinging . | . . . . Exploded 2 | . . 2 . Melee . | . . . . Uniques/NPCs Destroyed . | . . . . Combat | -11 -10 -10 -8 -------- Run | Yrd Mat Sub Mat Hostile Shots Fired 99 | . 13 86 . Missed 35 | . 2 33 . Hits 64 | . 11 53 . Projectile 64 | . 11 53 . AOE 1 | . . 1 . Damage Taken 747 | . 124 623 . Core 135 | . 9 126 . Absorbed by Shields . | . . . . Ignored by Resistances 451 | . 76 375 . Core Remaining (%) 73 | 100 . 46 . Volleys Fired 68 | . 13 55 . Largest 4 | . 2 4 . Hottest 155 | . 90 155 . Shots Fired 195 | . 26 169 . Gun 191 | . 26 165 . Cannon . | . . . . Launcher 4 | . . 4 . Special . | . . . . Kinetic 91 | . 12 79 . Thermal 12 | . 12 . . Explosive 4 | . . 4 . Electromagnetic 88 | . 2 86 . Robot Hit Streak 30 | . 18 30 . Robot Miss Streak 1 | . 1 1 . Penetration Max . | . . . . Secondary Targets 3 | . 1 2 . Max Gunslinging Chain 1 | . 1 1 . Shots Hit Robots 129 | . 23 106 . Core Hits 57 | . 9 48 . Critical Kills . | . . . . Critical Parts Destroyed . | . . . . Critical Strikes 2 | . 2 . . Burn 2 | . 2 . . Melee Attacks . | . . . . Impact . | . . . . Slashing . | . . . . Piercing . | . . . . Sneak Attacks . | . . . . Combat Hostiles . | . . . . Follow-up Attacks . | . . . . Damage Inflicted 2647 | . 313 2334 . Guns 1938 | . 305 1633 . Cannons . | . . . . Explosions 695 | . . 695 . Melee . | . . . . Ramming 14 | . 8 6 . Kinetic 992 | . 146 846 . Thermal 188 | . 138 50 . Explosive 645 | . . 645 . Electromagnetic 808 | . 21 787 . Impact . | . . . . Slashing . | . . . . Piercing . | . . . . Highest Corruption 1 | . . 1 . Average Corruption 1 | . . 1 . Corruption Purged . | . . . . Corruption Blocked . | . . . . Effects 27 | . . 27 . Message Errors 3 | . . 3 . Matter Fused 9 | . . 9 . Heat Flow Errors 6 | . . 6 . Energy Discharges 3 | . . 3 . Data Loss (minor) 4 | . . 4 . Misfires 1 | . . 1 . Weapon Failures 1 | . . 1 . Overload Shots . | . . . . Overflow Damage 12 | . . 12 . Projectiles . | . . . . Explosions 12 | . . 12 . Melee . | . . . . Knockbacks . | . . . . Impact . | . . . . Kinetic . | . . . . Secondary . | . . . . Self-Inflicted Damage 48 | . . 48 . Shots 2 | . . 2 . Rammed 1 | . 1 . . Targets Rammed 3 | . 3 . . Kicked 2 | . 2 . . Crushed . | . . . . Highest Temperature 172 | . 144 172 . Average Temperature 49 | . 57 42 . Received Heat Transfer 288 | . 78 210 . Siege Activations . | . . . . Martial Activations . | . . . . Shielding Activations . | . . . . Robots Disrupted . | . . . . Combat Hostiles . | . . . . Robots Corrupted 1 | . . 1 . Combat Hostiles 1 | . . 1 . Parts Fried 2 | . . 2 . Impact Corruptions . | . . . . Robots Melted 1 | . 1 . . Combat Hostiles . | . . . . Parts Melted 2 | . 1 1 . Heat Transferred 605 | . 555 50 . Parts Sabotaged . | . . . . Parts Stolen . | . . . . Parts Stripped . | . . . . Power Chain Reactions 1 | . . 1 . Alert | -11 -10 -10 -8 ------- Run | Yrd Mat Sub Mat Maximum Alert Level . | . . . . Low Security (%) 100 | 100 100 . 100 Level 1 . | . . . . Level 2 . | . . . . Level 3 . | . . . . Level 4 . | . . . . Level 5 . | . . . . High Security . | . . . . Max Security . | . . . . Peak Influence 42 | . 42 . . Initial . | . . . . Average 2 | . 2 . . Influence Increases 158 | . 73 85 . Destroy 0b10 Robot/C 80 | . 40 40 . Destroy 0b10 Robot/NC 15 | . 15 . . Destroy Leader 14 | . 14 . . Successful Hack 4 | . 4 . . Lose Combat Pursuer 45 | . . 45 . Influence Decreases 158 | . 73 85 . Time Decay 156 | . 71 85 . Purge Threat 2 | . 2 . . Squads Dispatched . | . . . . Investigation . | . . . . Extermination . | . . . . Reinforcement . | . . . . Assault . | . . . . Garrison . | . . . . Intercept . | . . . . Searches Triggered . | . . . . Construction Impeded . | . . . . Haulers Reinforced . | . . . . Active Scanning Responses . | . . . . Cargo Convoy Interrupts . | . . . . Stealth | -11 -10 -10 -8 --------- Run | Yrd Mat Sub Mat Distress Signals . | . . . . Communications Jammed . | . . . . Distress Signals . | . . . . Times Spotted 33 | . 5 28 . Peak Tracking Total 8 | . 3 8 . Tactical Retreats 1 | . . 1 . Traps | -11 -10 -10 -8 ------- Run | Yrd Mat Sub Mat Traps Triggered 4 | . 3 1 . Indirectly . | . . . . Trap Hack Attempts . | . . . . Triggered . | . . . . Disarmed . | . . . . Reprogrammed . | . . . . Reused . | . . . . Traps Extracted . | . . . . Installed . | . . . . Triggered . | . . . . Machines | -11 -10 -10 -8 ---------- Run | Yrd Mat Sub Mat Machines Disabled 2 | . . 2 . Max in Single Turn 1 | . . 1 . Machines Repaired . | . . . . Machines Dismantled . | . . . . Machines Sabotaged . | . . . . Overloaded Fab Kills . | . . . . Hacking | -11 -10 -10 -8 --------- Run | Yrd Mat Sub Mat Machines Accessed 9 | . 5 4 . Terminals 5 | . 5 . . Fabricators . | . . . . Repair Stations . | . . . . Recycling Units . | . . . . Scanalyzers . | . . . . Garrison Access . | . . . . Total Hacks 24 | . 17 7 . Successful 20 | . 13 7 . Failed 4 | . 4 . . Catastrophic . | . . . . Database Lockouts . | . . . . Manual 10 | . 10 . . Terminals 17 | . 17 . . Fabricators . | . . . . Repair Stations . | . . . . Recycling Units . | . . . . Scanalyzers . | . . . . Garrison Access . | . . . . Terminal Hacks 15 | . 8 7 . Record 4 | . . 4 . Prototype ID Bank 5 | . 5 . . Open Door 1 | . . 1 . Unreport Threat 1 | . 1 . . Locate Traps 1 | . 1 . . Zone Layout 1 | . 1 . . Proto ID Catalog 1 | . . 1 . Release Object 1 | . . 1 . Fabricator Hacks . | . . . . Repair Station Hacks . | . . . . Recycling Unit Hacks . | . . . . Scanalyzer . | . . . . Garrison Access Hacks . | . . . . Unauthorized Hacks 5 | . 5 . . Terminals 5 | . 5 . . Botnet 5 | . 5 . . Fabricators . | . . . . Repair Stations . | . . . . Recycling Units . | . . . . Scanalyzers . | . . . . Garrison Access . | . . . . Data Cores Recovered . | . . . . Used . | . . . . Hacking Detections 5 | . 5 . . Full Trace Events . | . . . . Feedback Events . | . . . . Feedback Blocked . | . . . . Robot Schematics Acquired . | . . . . Robots Built . | . . . . Authchips . | . . . . Time . | . . . . Total Robot Build Rating . | . . . . Part Schematics Acquired . | . . . . Parts Built . | . . . . Authchips . | . . . . Time . | . . . . Total Part Build Rating . | . . . . Part Studies Acquired . | . . . . Parts Repaired . | . . . . Time . | . . . . Parts Recycled . | . . . . Recycled Matter . | . . . . Retrieved Matter . | . . . . Retrieved Components . | . . . . Parts Scanalyzed . | . . . . Part Schematics Acquired . | . . . . Parts Damaged . | . . . . Bothacking | -11 -10 -10 -8 ------------ Run | Yrd Mat Sub Mat Used RIF Installer . | . . . . Robots Hacked . | . . . . Non-combat . | . . . . Combat . | . . . . Robot Hacks Applied . | . . . . Relay Couplers Released . | . . . . Fabnet Peak Effective % . | . . . . Robots Rewired . | . . . . Allies Hacked . | . . . . Hacks Repelled . | . . . . Allies | -11 -10 -10 -8 -------- Run | Yrd Mat Sub Mat Total Allies . | . . . . Largest Group . | . . . . Highest-Rated Group . | . . . . Highest-Rated Ally . | . . . . Total Orders . | . . . . Ally Attacks . | . . . . Total Damage . | . . . . Kills . | . . . . Allies Corrupted . | . . . . Allies Melted . | . . . . Intel | -11 -10 -10 -8 ------- Run | Yrd Mat Sub Mat Active Infowar (turns) 3719 | . 316 3399 4 Structural 3719 | . 316 3399 4 Robot Analysis Total . | . . . . Derelict Logs Recovered 2 | . . 2 . Drone Launches . | . . . . Drone Recoveries . | . . . . Exploration | -11 -10 -10 -8 ------------- Run | Yrd Mat Sub Mat Turns Passed 3952 | 5 544 3399 4 Spaces Moved 2319 | 2 333 1983 1 Core 122 | . . 122 . Treads 397 | . 174 223 . Legs 830 | 2 159 668 1 Wheels 970 | . . 970 . Hover . | . . . . Flight . | . . . . Fastest Speed 110 | 120 120 110 200 Average Speed 155 | 120 142 158 200 Slowest Speed 400 | 120 190 400 200 Overloaded Moves . | . . . . Propulsion Burnouts . | . . . . Robots Hopped . | . . . . Potential Cave-ins . | . . . . Cave-ins Triggered . | . . . . Exploration Rate (%) 35 | 2 50 87 1 Regions Visited 3 Branch Regions 1 Pre-discovered Areas . | . . . . Known Exits Taken 3 | 1 1 1 . Unknown Exits Taken . | . . . . Scrap Searched 12 | . . 12 . Spaces Dug 8 | . . 8 . Terrain Destroyed 38 | . . 38 . Melee . | . . . . Projectile . | . . . . AOE 38 | . . 38 . Terrain Rammed 1 | . . 1 . Walls Destroyed . | . . . . Machines Disabled . | . . . . Actions | -11 -10 -10 -8 --------- Run | Yrd Mat Sub Mat Total 2519 | 6 376 2134 3 Wait 13 | . . 13 . Move 2316 | 1 332 1982 1 Hop . | . . . . Pick Up 41 | . 13 28 . Fast Attach . | . . . . Attach 17 | . 3 12 2 Detach . | . . . . Swap 22 | 1 5 16 . Drop 38 | 4 7 27 . Fire 68 | . 13 55 . Melee . | . . . . Ram 1 | . . 1 . Kick 2 | . 2 . . Crush 1 | . 1 . . Escape Stasis . | . . . . Rewire . | . . . . Trap . | . . . . Miscellaneous . | . . . . Route ------- -11/Scrapyard -10/Materials (discovered 3 exits: *Mat / *Min / *Sub) -10/Subcaves (discovered 3 exits: *Mat x2 / *Rec) -8/Materials (discovered 1 exit: Fac) History --------- Turn | Location | Event 5 | -11/Scrapyard | Identified exit to Materials 5 | -11/Scrapyard | Discovered exit to Materials (range 1) 6 | -11/Scrapyard | Entered Materials 6 | -10/Materials | Evolved 1 slot: Utility x1 157 | -10/Materials | Identified exit to Materials 157 | -10/Materials | Discovered exit to Materials (range 15) 315 | -10/Materials | Build established: Hacker-Mutant 436 | -10/Materials | Identified exit to Mines 436 | -10/Materials | Discovered exit to Mines (range 15) 438 | -10/Materials | Identified exit to Subcaves 438 | -10/Materials | Discovered exit to Subcaves (range 16) 550 | -10/Materials | Entered Subcaves 551 | -10/Subcaves | Approached by a straggling Scientist 554 | -10/Subcaves | Ambushed by Subdwellers from Twisted Machinery 634 | -10/Subcaves | Ambushed by swarm of Subdwellers 677 | -10/Subcaves | Shifting Twisted Machinery released Flamer 679 | -10/Subcaves | Shifting Twisted Machinery released Riot Gun 862 | -10/Subcaves | Shifting Twisted Machinery released Sub. Beam Cannon 932 | -10/Subcaves | Identified exit to Materials 932 | -10/Subcaves | Discovered exit to Materials (range 10) 1078 | -10/Subcaves | Learned 2 Materials zone layouts 1107 | -10/Subcaves | Visited Clippyterm 1110 | -10/Subcaves | Learned Factory garrison access intel 1210 | -10/Subcaves | Shifting Twisted Machinery released Flamer 1514 | -10/Subcaves | A swath of the cavern ceiling suddenly collapsed 1925 | -10/Subcaves | Curiously followed by a Cobbler waking with a query about "LVR3C" 2241 | -10/Subcaves | A Subdweller sparked back to life 2241 | -10/Subcaves | A Subdweller sparked back to life 2241 | -10/Subcaves | A Subdweller sparked back to life 2258 | -10/Subcaves | Found Prototype Protection 2259 | -10/Subcaves | Identified Gun Armor 2260 | -10/Subcaves | Attached Gun Armor, gained temporary slots: Weapon x2 2296 | -10/Subcaves | Identified exit to Recycling 2296 | -10/Subcaves | Discovered exit to Recycling (range 15) 2565 | -10/Subcaves | Build established: Hacker-Skirmisher 2666 | -10/Subcaves | Disturbed a concealed Subdweller 2803 | -10/Subcaves | Visited 4L-MR0's lab 2822 | -10/Subcaves | Found Cargo Legs 2825 | -10/Subcaves | Attached Cargo Legs, gained temporary slots: Utility x2 3247 | -10/Subcaves | Shifting Twisted Machinery released Spk. Treads 3424 | -10/Subcaves | Core integrity fell below 50% 3445 | -10/Subcaves | Found SUBCON Basin 3949 | -10/Subcaves | Entered Materials 3949 | -8/Materials | Evolved 4 slots: Power x1, Propulsion x1, Utility x1, Weapon x1 3950 | -8/Materials | Identified exit to Factory 3953 | -8/Materials | Self-destructed Last Messages --------------- 03428_ Connecting with UFD SUBCON Station... 03441_ Connecting with SUBCON Basin Controls... >>Release Inventory Accessing inventory controls... Collection purity confirmed 100%... Ejecting SUBCON Basin... Delivery behind schedule, handle with care! 03445_ Dropped Sub. Power Source. 03445_ Acquired SUBCON Basin. 03448_ Acquired Sub. Power Source. 03526_ VW-Z4I(u) deconstructs Twisted Machinery. 03550_ System corrupted: Heat flow error (+196). 03779_ System corrupted: Matter fused (-10). 03826_ Subatomizers dissect the Carbon-fiber Leg. 03830_ GCT<82LX6AWNIW6D7DKYZIKZSPXBA 03847_ Acquired 7 matter. PARAMETERS=POWER+1,PROPULSION+1,UTILITY+1,WEAPON+1 LOCATION=MATERIALS GOAL=ESCAPE Loading 2 Materials zones... Map ----- +----------------------------------------------------+ | #??????????????????????????????????????????????? | | #??????????????????????????????????????????????? | | ##?????????????????????????????????????????????? | | ##?????????????????????????????????????????????? | | ##?????????????????????????????????????????????? | | ?????????????????????????????????????????????? | | ?????????????????????????????????????????????? | | ?????????????????????????????????????????????? | | ?????????????????????????????????????????????? | | #?????????????????????????????????????????????? | | #??????????????????? ???????????????????? | | #???????????????????###+###???????????????????? | | ??????????????????? ???????????????????? | | ???????????????????? ????????????????????? | | ??????????????????? ???????????????????? | | ####???????????????????## ##???????????????????? | | ???????????????????????## ##???????????????????? | | ?????????????????????#### ##???????????????????? | | ?????????????????????#### ##???????????????????? | | ????????????????????? ##???????????????????? | | ??????????????????????? # ???????????????????? | | ??????????????????????? # ???????????????????? | | ???????????????????????## + ???????????????????? | | ???????????????????????## # ???????????????????? | | ???????????????????????## # ???????????????????? | | ???????????????????????##@ # ???????????????????? | | ???????????????????????#######???????????????????? | | ???????????????????????#######???????????????????? | | ?????????????????????????????????????????????????? | | ?????????????????????????????????????????????????? | | ?????????????????????????????????????????????????? | | ?????????????????????????????????????????????????? | | ?????????????????????????????????????????????????? | | ?????????????????????????????????????????????????? | | ?????????????????????????????????????????????????? | | ?????????????????????????????????????????????????? | | ?????????????????????????????????????????????????? | | ?????????????????????????????????????????????????? | | ?????????????????????????????????????????????????? | | ?????????????????????????????????????????????????? | | ?????????????????????????????????????????????????? | | | | | | | | | | | | | | | | | | | +----------------------------------------------------+ Best States ------------- Heat Dissipation 53 Energy Generation 15 Energy Capacity 250 Matter Stores 300 Matter Capacity 300 Sight Range 16 Terrain Scan Density 10 Armor Coverage 60 Resistance: KI 35 Resistance: TH 35 Resistance: EX 35 Resistance: EM 35 Resistance: I 35 Resistance: S 35 Resistance: P 35 Evasion (%) 55 Targeting Accuracy 5 Recoil Reduction 2 Offensive Hacking 20 Item Schematics ----------------- None Robot Schematics ------------------ None Fabricated ------------ Nothing Repaired ---------- Nothing Studied --------- None Alien Tech Used ----------------- None Achievements -------------- None Challenges ------------ None Game ------ Seed RapidDirtyCharger Manual? 0 Play Time 00:20:05 Cumulative 54.4 hours Start 2026.01.24 @ 19:00:42 End 2026.01.25 @ 17:12:33 Sessions 5 Manual Loads 0 Difficulty Explorer Special Mode None Game No. 29 Rogue 7 Adventurer 0 Explorer 22 Win Type - Total 6 Types 3/0/1/0/0/0/1/0/1/0 Lore% 41 Gallery% 43 Achievement% 47 Wizard Run 0 Options --------- Layout 1 ASCII 0 Keyboard 0 Movement Arrows Keybinds 0 Fullscreen 1 Font 16/SmallcapsGlow Map View 55x38 Zoom Use 0% Tactical HUD 1 Map Filters NONE Filters NONE Steam 1 RUN: c9527155-7d7a-4528-8ff0-6b3af140fe8d